[Event "Late-Titled-Tuesday-Blitz-August-29-2023"]
[Site "Chess.com"]
[Date "2023.08.29"]
[Round "1"]
[White "ViktoriyaTarasova"]
[Black "lamomiajunior"]
[Result "0-1"]
[WhiteElo "2429"]
[BlackElo "2745"]
[TimeControl "180+1"]
[EndTime "14:06:18 PDT"]
[Termination "lamomiajunior won on time"]

1. d4 {[%clk 0:03:00.9]} 1... Nf6 {[%clk 0:03:00]} 2. c4 {[%clk 0:02:58.1]} 2...
e6 {[%clk 0:03:00.4]} 3. Nc3 {[%clk 0:02:57.9]} 3... Bb4 {[%clk 0:03:00.5]} 4.
Nf3 {[%clk 0:02:58]} 4... d5 {[%clk 0:02:59.7]} 5. cxd5 {[%clk 0:02:56.3]} 5...
exd5 {[%clk 0:03:00.6]} 6. Bg5 {[%clk 0:02:56.5]} 6... h6 {[%clk 0:02:59.3]} 7.
Bh4 {[%clk 0:02:55.9]} 7... O-O {[%clk 0:02:58.3]} 8. Qc2 {[%clk 0:02:56.2]}
8... c5 {[%clk 0:02:57.6]} 9. e3 {[%clk 0:02:56.4]} 9... g5 {[%clk 0:02:51.7]}
10. Bg3 {[%clk 0:02:55.7]} 10... Ne4 {[%clk 0:02:52.2]} 11. Bd3 {[%clk
0:02:53.9]} 11... Bxc3+ {[%clk 0:02:43.7]} 12. bxc3 {[%clk 0:02:24]} 12... Bf5
{[%clk 0:02:43.6]} 13. Nd2 {[%clk 0:02:13.2]} 13... Re8 {[%clk 0:02:36.5]} 14.
O-O {[%clk 0:01:56.3]} 14... Nxd2 {[%clk 0:02:30.4]} 15. Qxd2 {[%clk 0:01:55.6]}
15... Bxd3 {[%clk 0:02:31.1]} 16. Qxd3 {[%clk 0:01:55.9]} 16... c4 {[%clk
0:02:31.3]} 17. Qf5 {[%clk 0:01:49.7]} 17... Qd7 {[%clk 0:02:31]} 18. Qf3 {[%clk
0:01:32.8]} 18... Nc6 {[%clk 0:02:29.8]} 19. h4 {[%clk 0:01:27.8]} 19... Kg7
{[%clk 0:02:25.9]} 20. Rab1 {[%clk 0:01:18.3]} 20... b6 {[%clk 0:02:17.7]} 21.
Rfe1 {[%clk 0:01:15.3]} 21... Re4 {[%clk 0:02:12.9]} 22. Qh5 {[%clk 0:01:13.6]}
22... Qf5 {[%clk 0:01:38]} 23. Rb5 {[%clk 0:00:49.6]} 23... Rae8 {[%clk
0:01:34.7]} 24. hxg5 {[%clk 0:00:21.8]} 24... hxg5 {[%clk 0:01:33.2]} 25. Qf3
{[%clk 0:00:22.4]} 25... Qe6 {[%clk 0:01:29]} 26. Rd1 {[%clk 0:00:18.1]} 26...
f6 {[%clk 0:01:26.9]} 27. a4 {[%clk 0:00:10.4]} 27... Na5 {[%clk 0:01:25.1]} 28.
Qe2 {[%clk 0:00:06.7]} 28... Nb3 {[%clk 0:01:23.6]} 29. Qc2 {[%clk 0:00:04.4]}
29... Rc8 {[%clk 0:01:17.3]} 30. Rb1 {[%clk 0:00:04.6]} 30... Qc6 {[%clk
0:01:13.4]} 31. R1xb3 {[%clk 0:00:04.6]} 31... cxb3 {[%clk 0:01:14.3]} 32. Qxb3
{[%clk 0:00:05.1]} 32... Qxc3 {[%clk 0:01:08.8]} 33. Qxd5 {[%clk 0:00:05]} 33...
Qc1+ {[%clk 0:01:08.9]} 34. Kh2 {[%clk 0:00:03.2]} 34... Rh8+ {[%clk 0:01:09.6]}
0-1

[Event "Late-Titled-Tuesday-Blitz-August-29-2023"]
[Site "Chess.com"]
[Date "2023.08.29"]
[Round "1"]
[White "campochess"]
[Black "betta2004"]
[Result "0-1"]
[WhiteElo "2198"]
[BlackElo "2557"]
[TimeControl "180+1"]
[EndTime "14:06:25 PDT"]
[Termination "betta2004 won by resignation"]

1. d4 {[%clk 0:02:58.6]} 1... Nf6 {[%clk 0:02:58.7]} 2. Bg5 {[%clk 0:02:58.2]}
2... Ne4 {[%clk 0:02:58]} 3. h4 {[%clk 0:02:57.2]} 3... c5 {[%clk 0:02:58]} 4.
d5 {[%clk 0:02:55.9]} 4... h6 {[%clk 0:02:56.8]} 5. Bf4 {[%clk 0:02:54.7]} 5...
d6 {[%clk 0:02:56.6]} 6. Nd2 {[%clk 0:02:54.2]} 6... Qa5 {[%clk 0:02:53.7]} 7.
c3 {[%clk 0:02:52.9]} 7... Nxd2 {[%clk 0:02:53.3]} 8. Qxd2 {[%clk 0:02:52.2]}
8... Nd7 {[%clk 0:02:53.6]} 9. e4 {[%clk 0:02:50.9]} 9... b5 {[%clk 0:02:53.8]}
10. b4 {[%clk 0:02:42.5]} 10... cxb4 {[%clk 0:02:53.2]} 11. cxb4 {[%clk
0:02:41.9]} 11... Qb6 {[%clk 0:02:49.4]} 12. Be3 {[%clk 0:02:37.6]} 12... Qb8
{[%clk 0:02:49.5]} 13. Nf3 {[%clk 0:02:35.6]} 13... Nf6 {[%clk 0:02:47.6]} 14.
Bd3 {[%clk 0:02:31.6]} 14... g6 {[%clk 0:02:45.4]} 15. Nd4 {[%clk 0:02:30.6]}
15... a6 {[%clk 0:02:44.3]} 16. Nc6 {[%clk 0:02:20]} 16... Qc7 {[%clk
0:02:44.2]} 17. f3 {[%clk 0:02:13.7]} 17... Bg7 {[%clk 0:02:43.5]} 18. Bd4
{[%clk 0:02:12.5]} 18... Bd7 {[%clk 0:02:42.6]} 19. Na5 {[%clk 0:02:10.5]} 19...
Rc8 {[%clk 0:02:41.2]} 20. O-O {[%clk 0:02:07]} 20... O-O {[%clk 0:02:34.2]} 21.
Rac1 {[%clk 0:02:06.6]} 21... Qb8 {[%clk 0:02:34.4]} 22. Qb2 {[%clk 0:02:04.6]}
22... Rxc1 {[%clk 0:02:28.8]} 23. Rxc1 {[%clk 0:02:02.7]} 23... Rc8 {[%clk
0:02:29.3]} 24. Rxc8+ {[%clk 0:02:01.4]} 24... Qxc8 {[%clk 0:02:30.2]} 25. Qc3
{[%clk 0:01:59.4]} 25... Qxc3 {[%clk 0:02:21.7]} 26. Bxc3 {[%clk 0:01:59.1]}
26... Nxd5 {[%clk 0:02:21.3]} 27. Bxg7 {[%clk 0:01:53.2]} 27... Nxb4 {[%clk
0:02:21.9]} 28. Bxh6 {[%clk 0:01:48.1]} 28... Nxd3 {[%clk 0:02:21.6]} 29. Bd2
{[%clk 0:01:41.3]} 29... Kg7 {[%clk 0:02:20.4]} 30. Kf1 {[%clk 0:01:37.5]} 30...
Kf6 {[%clk 0:02:19.7]} 31. Ke2 {[%clk 0:01:37.3]} 31... Nc5 {[%clk 0:02:20.2]}
32. Bc3+ {[%clk 0:01:33.3]} 32... e5 {[%clk 0:02:19.7]} 33. Ke3 {[%clk
0:01:31.6]} 33... Be6 {[%clk 0:02:20]} 34. a3 {[%clk 0:01:23.8]} 34... Ke7
{[%clk 0:02:20.3]} 35. Bb4 {[%clk 0:01:22.6]} 35... Kd7 {[%clk 0:02:19.2]} 36.
f4 {[%clk 0:01:17.2]} 36... exf4+ {[%clk 0:02:17.2]} 37. Kxf4 {[%clk 0:01:16.1]}
37... Nd3+ {[%clk 0:02:15.7]} 38. Ke3 {[%clk 0:01:15.8]} 38... Ne5 {[%clk
0:02:08.4]} 39. Kd4 {[%clk 0:01:12.5]} 39... f6 {[%clk 0:02:07.5]} 40. Nb7
{[%clk 0:01:07.7]} 40... Nc4 {[%clk 0:02:06.9]} 41. Na5 {[%clk 0:01:02.1]} 41...
Nb6 {[%clk 0:02:06.6]} 42. Nb7 {[%clk 0:00:58.5]} 42... Nc8 {[%clk 0:02:05.6]}
43. Na5 {[%clk 0:00:56.9]} 43... Bg4 {[%clk 0:02:00.9]} 44. Nb3 {[%clk
0:00:52.3]} 44... Bd1 {[%clk 0:01:59.4]} 45. Nd2 {[%clk 0:00:51.8]} 45... Ne7
{[%clk 0:01:59.5]} 46. Bc3 {[%clk 0:00:45.5]} 46... Ke6 {[%clk 0:01:55.9]} 47.
Nf1 {[%clk 0:00:44.2]} 47... Nc6+ {[%clk 0:01:55.6]} 48. Ke3 {[%clk 0:00:43.6]}
48... d5 {[%clk 0:01:55.2]} 49. exd5+ {[%clk 0:00:42.2]} 49... Kxd5 {[%clk
0:01:56.1]} 50. Kd2 {[%clk 0:00:40.6]} 50... Bh5 {[%clk 0:01:50.7]} 51. Bxf6
{[%clk 0:00:40]} 51... Ne5 {[%clk 0:01:44.1]} 52. Kc3 {[%clk 0:00:34.2]} 52...
Nc4 {[%clk 0:01:43.3]} 53. g4 {[%clk 0:00:30.9]} 53... Bxg4 {[%clk 0:01:42.9]}
54. Ne3+ {[%clk 0:00:30.6]} 54... Nxe3 {[%clk 0:01:43.1]} 55. Kb4 {[%clk
0:00:28.4]} 55... Be2 {[%clk 0:01:42.6]} 56. Ka5 {[%clk 0:00:28]} 56... Nc2
{[%clk 0:01:42.4]} 57. Be7 {[%clk 0:00:27.3]} 57... Ke4 {[%clk 0:01:39.9]} 58.
Bb4 {[%clk 0:00:26.2]} 58... Nxb4 {[%clk 0:01:38.6]} 59. axb4 {[%clk 0:00:26.2]}
59... Kf4 {[%clk 0:01:38.6]} 0-1

[Event "Late-Titled-Tuesday-Blitz-August-29-2023"]
[Site "Chess.com"]
[Date "2023.08.29"]
[Round "1"]
[White "Adham_Fawzy"]
[Black "Dontmesswithme_2"]
[Result "0-1"]
[WhiteElo "2887"]
[BlackElo "2490"]
[TimeControl "180+1"]
[EndTime "14:06:26 PDT"]
[Termination "Dontmesswithme_2 won by resignation"]

1. e4 {[%clk 0:03:00.7]} 1... c5 {[%clk 0:02:59.4]} 2. Nf3 {[%clk 0:02:59.1]}
2... d6 {[%clk 0:02:55.9]} 3. d4 {[%clk 0:02:59.6]} 3... cxd4 {[%clk 0:02:54.6]}
4. Nxd4 {[%clk 0:03:00.5]} 4... Nf6 {[%clk 0:02:54]} 5. Nc3 {[%clk 0:03:01.1]}
5... a6 {[%clk 0:02:53.3]} 6. Bg5 {[%clk 0:03:00.9]} 6... Nbd7 {[%clk 0:02:53]}
7. Bc4 {[%clk 0:03:00.4]} 7... Qb6 {[%clk 0:02:42.5]} 8. Bb3 {[%clk 0:03:00.3]}
8... e6 {[%clk 0:02:42.3]} 9. Bxf6 {[%clk 0:03:00.7]} 9... Nxf6 {[%clk 0:02:42]}
10. Qd2 {[%clk 0:03:00.9]} 10... Be7 {[%clk 0:02:39.8]} 11. O-O-O {[%clk
0:03:00.6]} 11... Nd7 {[%clk 0:02:39.8]} 12. f4 {[%clk 0:02:55.2]} 12... Nc5
{[%clk 0:02:39.7]} 13. Rhe1 {[%clk 0:02:52.7]} 13... Qc7 {[%clk 0:02:39.3]} 14.
Nf5 {[%clk 0:02:47.9]} 14... O-O {[%clk 0:01:25.4]} 15. Nxe7+ {[%clk 0:02:45.5]}
15... Qxe7 {[%clk 0:01:25]} 16. Qxd6 {[%clk 0:02:46.2]} 16... Qxd6 {[%clk
0:01:25.2]} 17. Rxd6 {[%clk 0:02:46.3]} 17... b5 {[%clk 0:01:25.9]} 18. Rc6
{[%clk 0:02:36.6]} 18... Nxb3+ {[%clk 0:01:21.6]} 19. axb3 {[%clk 0:02:37.5]}
19... b4 {[%clk 0:01:14.9]} 20. Na4 {[%clk 0:02:35.4]} 20... Bd7 {[%clk
0:01:14.1]} 21. Rc7 {[%clk 0:02:35]} 21... Bb5 {[%clk 0:01:11.4]} 22. Rd1 {[%clk
0:02:33.8]} 22... Rad8 {[%clk 0:01:07]} 23. Rxd8 {[%clk 0:02:27.8]} 23... Rxd8
{[%clk 0:01:07.9]} 24. c4 {[%clk 0:02:28.2]} 24... bxc3 {[%clk 0:01:05.2]} 25.
bxc3 {[%clk 0:02:29.1]} 25... Bf1 {[%clk 0:00:48.7]} 26. g3 {[%clk 0:02:24.6]}
26... h5 {[%clk 0:00:48.4]} 27. Nc5 {[%clk 0:02:23.7]} 27... g6 {[%clk
0:00:35.8]} 28. c4 {[%clk 0:02:23.3]} 28... Rd4 {[%clk 0:00:32.4]} 29. Kc2
{[%clk 0:02:22.7]} 29... Bg2 {[%clk 0:00:28.6]} 30. Kc3 {[%clk 0:02:22.6]} 30...
Rd1 {[%clk 0:00:27.8]} 31. e5 {[%clk 0:02:22.7]} 31... Rh1 {[%clk 0:00:24.8]}
32. Nxa6 {[%clk 0:02:13.4]} 32... Rxh2 {[%clk 0:00:24.7]} 33. b4 {[%clk
0:02:14]} 33... Rh3 {[%clk 0:00:24.7]} 34. b5 {[%clk 0:02:13.1]} 34... Rxg3+
{[%clk 0:00:25.3]} 35. Kb4 {[%clk 0:02:13.8]} 35... h4 {[%clk 0:00:25.8]} 36.
Rd7 {[%clk 0:02:04.3]} 36... h3 {[%clk 0:00:16.8]} 37. Rd1 {[%clk 0:02:02.4]}
37... h2 {[%clk 0:00:17.2]} 38. b6 {[%clk 0:02:02.6]} 38... Bb7 {[%clk
0:00:12.6]} 39. Nc5 {[%clk 0:02:02.4]} 39... Bc6 {[%clk 0:00:12.6]} 40. b7
{[%clk 0:01:54.4]} 40... Bxb7 {[%clk 0:00:12.3]} 41. Nxb7 {[%clk 0:01:55.3]}
41... Rg1 {[%clk 0:00:12.1]} 42. Rd8+ {[%clk 0:01:55.5]} 42... Kg7 {[%clk
0:00:11.8]} 43. Nd6 {[%clk 0:01:56.1]} 43... h1=Q {[%clk 0:00:11]} 44. Ne8+
{[%clk 0:01:56.8]} 44... Kh6 {[%clk 0:00:10.3]} 45. Nf6 {[%clk 0:01:57.2]} 45...
Rb1+ {[%clk 0:00:09.7]} 46. Kc5 {[%clk 0:01:57.4]} 46... Qg1+ {[%clk 0:00:09.6]}
47. Kd6 {[%clk 0:01:55.2]} 47... Rd1+ {[%clk 0:00:09.5]} 48. Ke7 {[%clk
0:01:53.1]} 48... Rxd8 {[%clk 0:00:09.3]} 49. Kxd8 {[%clk 0:01:53.2]} 49... Qd4+
{[%clk 0:00:09.7]} 50. Ke7 {[%clk 0:01:53.9]} 50... Qxc4 {[%clk 0:00:09.2]} 51.
Kxf7 {[%clk 0:01:54.4]} 51... Qxf4 {[%clk 0:00:09.1]} 52. Kxe6 {[%clk 0:01:55]}
52... Qf5+ {[%clk 0:00:09.5]} 53. Kd6 {[%clk 0:01:55]} 53... Kg7 {[%clk
0:00:09.4]} 54. Ne8+ {[%clk 0:01:55.1]} 54... Kf8 {[%clk 0:00:09.8]} 55. Nc7
{[%clk 0:01:56]} 55... Qd3+ {[%clk 0:00:07.9]} 56. Nd5 {[%clk 0:01:53.7]} 56...
g5 {[%clk 0:00:07.4]} 57. e6 {[%clk 0:01:54.3]} 57... g4 {[%clk 0:00:07.6]} 58.
e7+ {[%clk 0:01:54.8]} 58... Ke8 {[%clk 0:00:07.1]} 59. Ke6 {[%clk 0:01:55.7]}
59... Qxd5+ {[%clk 0:00:07.3]} 60. Kxd5 {[%clk 0:01:56.4]} 60... g3 {[%clk
0:00:08]} 0-1

[Event "Late-Titled-Tuesday-Blitz-August-29-2023"]
[Site "Chess.com"]
[Date "2023.08.29"]
[Round "1"]
[White "Karina_Ivanova"]
[Black "koziororo"]
[Result "0-1"]
[WhiteElo "2305"]
[BlackElo "2605"]
[TimeControl "180+1"]
[EndTime "14:06:29 PDT"]
[Termination "koziororo won by resignation"]

1. Nf3 {[%clk 0:02:45.1]} 1... Na6 {[%clk 0:03:00.9]} 2. c4 {[%clk 0:02:39.2]}
2... b6 {[%clk 0:03:00.1]} 3. d4 {[%clk 0:02:38.3]} 3... c5 {[%clk 0:02:59.3]}
4. Nc3 {[%clk 0:02:37.7]} 4... cxd4 {[%clk 0:02:59.2]} 5. Nxd4 {[%clk 0:02:37]}
5... g6 {[%clk 0:02:59.3]} 6. e4 {[%clk 0:02:33.6]} 6... Bg7 {[%clk 0:02:59.9]}
7. Be2 {[%clk 0:02:32.1]} 7... Bb7 {[%clk 0:03:00.4]} 8. O-O {[%clk 0:02:31.1]}
8... d6 {[%clk 0:03:00.7]} 9. Be3 {[%clk 0:02:29.8]} 9... Nf6 {[%clk 0:03:00]}
10. f3 {[%clk 0:02:29.2]} 10... O-O {[%clk 0:03:00.7]} 11. Rc1 {[%clk 0:02:27]}
11... Rc8 {[%clk 0:03:01.3]} 12. Qd2 {[%clk 0:02:22.1]} 12... Re8 {[%clk
0:03:00.9]} 13. Rfd1 {[%clk 0:02:21.3]} 13... Nc5 {[%clk 0:03:00.7]} 14. b4
{[%clk 0:02:18]} 14... Ncd7 {[%clk 0:03:00.6]} 15. Nd5 {[%clk 0:02:13.2]} 15...
Ne5 {[%clk 0:02:59.9]} 16. a3 {[%clk 0:02:09.2]} 16... Qd7 {[%clk 0:02:59.4]}
17. h3 {[%clk 0:02:06.2]} 17... Nxd5 {[%clk 0:02:57.6]} 18. cxd5 {[%clk
0:02:02.6]} 18... Rxc1 {[%clk 0:02:58.5]} 19. Rxc1 {[%clk 0:02:02.4]} 19... Rc8
{[%clk 0:02:59.4]} 20. Rxc8+ {[%clk 0:02:00.6]} 20... Qxc8 {[%clk 0:02:59.2]}
21. Qc2 {[%clk 0:01:58.3]} 21... Qxc2 {[%clk 0:02:58.7]} 22. Nxc2 {[%clk
0:01:56.3]} 22... Kf8 {[%clk 0:02:59.2]} 23. Kf2 {[%clk 0:01:47.9]} 23... Ke8
{[%clk 0:02:58.9]} 24. Ke1 {[%clk 0:01:42.5]} 24... e6 {[%clk 0:02:59.1]} 25.
dxe6 {[%clk 0:01:39.4]} 25... fxe6 {[%clk 0:03:00]} 26. Kd2 {[%clk 0:01:37.8]}
26... h6 {[%clk 0:02:58.3]} 27. h4 {[%clk 0:01:34]} 27... Ke7 {[%clk 0:02:57.7]}
28. Nd4 {[%clk 0:01:29.2]} 28... Nc6 {[%clk 0:02:56.4]} 29. Nxc6+ {[%clk
0:01:23.3]} 29... Bxc6 {[%clk 0:02:57.3]} 30. g4 {[%clk 0:01:18]} 30... h5
{[%clk 0:02:53.6]} 31. gxh5 {[%clk 0:01:15.3]} 31... gxh5 {[%clk 0:02:54.5]} 32.
Bd3 {[%clk 0:00:58.3]} 32... Bb2 {[%clk 0:02:54.3]} 33. b5 {[%clk 0:00:55.4]}
33... Bd7 {[%clk 0:02:52.8]} 34. a4 {[%clk 0:00:55.2]} 34... Bf6 {[%clk
0:02:52.7]} 35. Bf2 {[%clk 0:00:52.1]} 35... e5 {[%clk 0:02:52.1]} 36. Bc4
{[%clk 0:00:49.3]} 36... Bg7 {[%clk 0:02:51.5]} 37. Be3 {[%clk 0:00:48.7]} 37...
Bf6 {[%clk 0:02:51.6]} 38. Bf2 {[%clk 0:00:48.7]} 38... Kf8 {[%clk 0:02:51.9]}
39. Ke2 {[%clk 0:00:46.3]} 39... Kg7 {[%clk 0:02:52.4]} 40. Kf1 {[%clk
0:00:44.9]} 40... Kg6 {[%clk 0:02:50.4]} 41. Kg2 {[%clk 0:00:44.7]} 41... Bg7
{[%clk 0:02:50.6]} 42. Kg3 {[%clk 0:00:44.5]} 42... Bh6 {[%clk 0:02:50.8]} 43.
a5 {[%clk 0:00:43.3]} 43... Bf4+ {[%clk 0:02:48.8]} 44. Kg2 {[%clk 0:00:43.1]}
44... bxa5 {[%clk 0:02:49.2]} 45. Bxa7 {[%clk 0:00:42.1]} 45... a4 {[%clk
0:02:49.4]} 46. b6 {[%clk 0:00:37.2]} 46... Bc6 {[%clk 0:02:49.7]} 47. Bd5
{[%clk 0:00:35.3]} 47... Bxd5 {[%clk 0:02:43.4]} 48. exd5 {[%clk 0:00:35.1]}
48... Be3 {[%clk 0:02:44.3]} 49. Bb8 {[%clk 0:00:34.3]} 49... Bxb6 {[%clk
0:02:44.2]} 50. Bxd6 {[%clk 0:00:34.2]} 50... Kf5 {[%clk 0:02:44.8]} 51. Bb4
{[%clk 0:00:32.5]} 51... Bd8 {[%clk 0:02:43.1]} 52. Kg3 {[%clk 0:00:31.8]} 52...
Bc7 {[%clk 0:02:41.6]} 53. Kg2 {[%clk 0:00:31]} 53... Bb6 {[%clk 0:02:38.9]} 54.
Kg3 {[%clk 0:00:30.6]} 54... Bd4 {[%clk 0:02:39.3]} 55. Ba3 {[%clk 0:00:28.6]}
55... Bc3 {[%clk 0:02:38.4]} 56. Kg2 {[%clk 0:00:27.1]} 56... Be1 {[%clk
0:02:38.1]} 57. Be7 {[%clk 0:00:23.5]} 57... Bd2 {[%clk 0:02:19.9]} 58. Kg3
{[%clk 0:00:20.4]} 58... Bf4+ {[%clk 0:02:19.7]} 59. Kg2 {[%clk 0:00:20.2]}
59... Be3 {[%clk 0:02:19.3]} 60. Ba3 {[%clk 0:00:19.1]} 60... Bd4 {[%clk
0:02:19.6]} 61. Kg3 {[%clk 0:00:18.4]} 61... Bc3 {[%clk 0:02:19.4]} 62. Kg2
{[%clk 0:00:17.5]} 62... Kf6 {[%clk 0:02:19.1]} 63. Kg3 {[%clk 0:00:17.3]} 63...
Be1+ {[%clk 0:02:19.3]} 64. Kh3 {[%clk 0:00:16.9]} 64... Kf7 {[%clk 0:02:19.7]}
65. Bd6 {[%clk 0:00:15.7]} 65... Bc3 {[%clk 0:02:18.7]} 66. Ba3 {[%clk
0:00:15.5]} 66... Ke8 {[%clk 0:02:19.2]} 67. Kg3 {[%clk 0:00:14.6]} 67... Be1+
{[%clk 0:02:19.6]} 68. Kh3 {[%clk 0:00:14.7]} 68... Kd7 {[%clk 0:02:20.1]} 69.
Kg2 {[%clk 0:00:13.5]} 69... Bxh4 {[%clk 0:02:19.9]} 70. Bb2 {[%clk 0:00:12.9]}
70... Kd6 {[%clk 0:02:19.7]} 0-1

[Event "Late-Titled-Tuesday-Blitz-August-29-2023"]
[Site "Chess.com"]
[Date "2023.08.29"]
[Round "1"]
[White "santosalberto1987"]
[Black "laskakid"]
[Result "1-0"]
[WhiteElo "2554"]
[BlackElo "2175"]
[TimeControl "180+1"]
[EndTime "14:06:29 PDT"]
[Termination "santosalberto1987 won by checkmate"]

1. e4 {[%clk 0:03:00.4]} 1... e5 {[%clk 0:02:59.7]} 2. Nf3 {[%clk 0:02:59.6]}
2... Nc6 {[%clk 0:02:59.7]} 3. Bc4 {[%clk 0:02:58.8]} 3... Nf6 {[%clk
0:02:58.8]} 4. d3 {[%clk 0:02:58.7]} 4... Bc5 {[%clk 0:02:57.1]} 5. c3 {[%clk
0:02:57.8]} 5... d6 {[%clk 0:02:57]} 6. Nbd2 {[%clk 0:02:54.5]} 6... a5 {[%clk
0:02:54.3]} 7. O-O {[%clk 0:02:53.3]} 7... O-O {[%clk 0:02:51.1]} 8. h3 {[%clk
0:02:52.9]} 8... h6 {[%clk 0:02:50.2]} 9. Re1 {[%clk 0:02:52.8]} 9... Ba7 {[%clk
0:02:48.5]} 10. Nf1 {[%clk 0:02:52.2]} 10... Be6 {[%clk 0:02:47.4]} 11. Bb5
{[%clk 0:02:39.1]} 11... Ne7 {[%clk 0:02:43]} 12. Ng3 {[%clk 0:02:36.7]} 12...
Ng6 {[%clk 0:02:39.6]} 13. d4 {[%clk 0:02:35.9]} 13... c6 {[%clk 0:02:26.2]} 14.
Bf1 {[%clk 0:02:31.2]} 14... Qc7 {[%clk 0:02:09.3]} 15. Nf5 {[%clk 0:02:21.6]}
15... d5 {[%clk 0:01:54.6]} 16. dxe5 {[%clk 0:01:44.8]} 16... Nxe4 {[%clk
0:01:52.6]} 17. N5d4 {[%clk 0:01:38.4]} 17... Rae8 {[%clk 0:01:26.8]} 18. Bd3
{[%clk 0:01:34.2]} 18... Nxe5 {[%clk 0:01:20]} 19. Bf4 {[%clk 0:01:27.8]} 19...
Nxf3+ {[%clk 0:01:15.8]} 20. Qxf3 {[%clk 0:01:28.7]} 20... Qd7 {[%clk
0:01:04.6]} 21. Bxe4 {[%clk 0:01:12.9]} 21... dxe4 {[%clk 0:01:04.2]} 22. Qxe4
{[%clk 0:01:13.2]} 22... Bxd4 {[%clk 0:01:03.8]} 23. Qxd4 {[%clk 0:01:12.4]}
23... Qxd4 {[%clk 0:01:00.2]} 24. cxd4 {[%clk 0:01:13.3]} 24... Bd5 {[%clk
0:00:58]} 25. Bd6 {[%clk 0:01:07.2]} 25... Rxe1+ {[%clk 0:00:57.3]} 26. Rxe1
{[%clk 0:01:08.1]} 26... Rd8 {[%clk 0:00:57]} 27. Bc7 {[%clk 0:01:07.8]} 27...
Ra8 {[%clk 0:00:54.2]} 28. a3 {[%clk 0:01:07.5]} 28... a4 {[%clk 0:00:53.2]} 29.
Re7 {[%clk 0:01:06.6]} 29... b5 {[%clk 0:00:45.4]} 30. Be5 {[%clk 0:01:03.7]}
30... Kf8 {[%clk 0:00:40]} 31. Bd6 {[%clk 0:01:01.5]} 31... Kg8 {[%clk
0:00:39.9]} 32. g4 {[%clk 0:00:59.2]} 32... Rd8 {[%clk 0:00:36.4]} 33. Bc5
{[%clk 0:00:59]} 33... Be6 {[%clk 0:00:35.1]} 34. Rc7 {[%clk 0:00:57.4]} 34...
Bd5 {[%clk 0:00:35]} 35. Kh2 {[%clk 0:00:56.6]} 35... g6 {[%clk 0:00:33.1]} 36.
Kg3 {[%clk 0:00:55.7]} 36... Re8 {[%clk 0:00:32.3]} 37. h4 {[%clk 0:00:54.2]}
37... g5 {[%clk 0:00:31.7]} 38. h5 {[%clk 0:00:51.7]} 38... Kg7 {[%clk
0:00:29.7]} 39. Bd6 {[%clk 0:00:51]} 39... Kf6 {[%clk 0:00:28.2]} 40. Be5+
{[%clk 0:00:50.9]} 40... Ke6 {[%clk 0:00:28.3]} 41. f4 {[%clk 0:00:48.3]} 41...
f6 {[%clk 0:00:27.5]} 42. f5# {[%clk 0:00:47.1]} 1-0

[Event "Late-Titled-Tuesday-Blitz-August-29-2023"]
[Site "Chess.com"]
[Date "2023.08.29"]
[Round "1"]
[White "Michalczak"]
[Black "Oleksandr_Bortnyk"]
[Result "1/2-1/2"]
[WhiteElo "2520"]
[BlackElo "3041"]
[TimeControl "180+1"]
[EndTime "14:06:30 PDT"]
[Termination "Game drawn by repetition"]

1. e4 {[%clk 0:03:00.9]} 1... Nf6 {[%clk 0:02:24.6]} 2. e5 {[%clk 0:03:00.7]}
2... Nd5 {[%clk 0:02:07.3]} 3. d4 {[%clk 0:03:01.1]} 3... d6 {[%clk 0:02:06.8]}
4. Nf3 {[%clk 0:03:01.3]} 4... dxe5 {[%clk 0:02:07.1]} 5. Nxe5 {[%clk
0:03:00.9]} 5... c6 {[%clk 0:02:07.2]} 6. Be2 {[%clk 0:03:00.2]} 6... Bf5 {[%clk
0:02:06.8]} 7. c4 {[%clk 0:02:45.6]} 7... Nb4 {[%clk 0:02:03.4]} 8. O-O {[%clk
0:02:45.6]} 8... Nd7 {[%clk 0:01:01.4]} 9. g4 {[%clk 0:02:37.5]} 9... Bxb1
{[%clk 0:00:56.3]} 10. Rxb1 {[%clk 0:02:37.2]} 10... Nxe5 {[%clk 0:00:56.6]} 11.
dxe5 {[%clk 0:02:37]} 11... Qxd1 {[%clk 0:00:57]} 12. Rxd1 {[%clk 0:02:36.9]}
12... Nxa2 {[%clk 0:00:57.1]} 13. Bd2 {[%clk 0:02:33.1]} 13... e6 {[%clk
0:00:38.9]} 14. b4 {[%clk 0:02:30.3]} 14... O-O-O {[%clk 0:00:31.7]} 15. c5
{[%clk 0:02:22.2]} 15... Be7 {[%clk 0:00:22.7]} 16. Rb2 {[%clk 0:02:11.4]} 16...
Rxd2 {[%clk 0:00:21.8]} 17. Rdxd2 {[%clk 0:02:05.4]} 17... Nc3 {[%clk
0:00:21.8]} 18. Bf3 {[%clk 0:01:36.8]} 18... a6 {[%clk 0:00:21.6]} 19. Rd3
{[%clk 0:01:32.5]} 19... Nb5 {[%clk 0:00:18.8]} 20. Be4 {[%clk 0:01:28.3]} 20...
g6 {[%clk 0:00:16.2]} 21. f4 {[%clk 0:01:24.6]} 21... h5 {[%clk 0:00:09.8]} 22.
g5 {[%clk 0:01:23.7]} 22... Re8 {[%clk 0:00:03]} 23. Rbd2 {[%clk 0:01:13.1]}
23... Nc7 {[%clk 0:00:03.7]} 24. Rd6 {[%clk 0:01:04.2]} 24... Nb5 {[%clk
0:00:03.6]} 25. Rd7 {[%clk 0:01:01.8]} 25... Nc3 {[%clk 0:00:03.1]} 26. Bxc6
{[%clk 0:00:53.2]} 26... bxc6 {[%clk 0:00:03]} 27. Ra7 {[%clk 0:00:53.3]} 27...
Nd5 {[%clk 0:00:03]} 28. Ra8+ {[%clk 0:00:39.1]} 28... Kd7 {[%clk 0:00:03.6]}
29. Ra7+ {[%clk 0:00:39.7]} 29... Kc8 {[%clk 0:00:04.2]} 30. Ra8+ {[%clk
0:00:40.1]} 30... Kd7 {[%clk 0:00:04.8]} 31. Ra7+ {[%clk 0:00:40.7]} 31... Kc8
{[%clk 0:00:02.6]} 1/2-1/2